Cogmind - Beta 11 X11 --- EXPLORER MODE // 2022.03.11 @ 22:13:57 Player: AI52487963 Result: Self-destructed Performance ------------- Evolutions (6) 3000 Regions Visited (13) 2600 Robots Destroyed (111) 555 Value Destroyed (4776) 4776 Prototype IDs (16) 320 Alien Tech Used (0) 0 Bonus (1239) 1239 TOTAL SCORE: 12490 Bonus ------- High Alert Combat Kills 32 Follower Combat Kills 507 Entered DSFs 500 Network Hubs Disabled 200 Cogmind --------- Core Integrity 1116/1150 Matter 120/300 Energy 40/100 System Corruption 0% Temperature Cool (0) Movement Core (650) Ox12 Location -4/Factory Parts ------- > --- POWER (1) -------- (None) > --- PROPULSION (4) --- Myomer Leg Advanced VSS Leg > --- UTILITY (11) ----- (None) > --- WEAPON (4) ------- Heavy Plasma Cannon Matter Neutralizer Proton Missile Launcher Micro-nuke Launcher > --- INVENTORY (5) ---- Heavy Reflective Plating Heavy Hammer Peak State ------------ > --- POWER ------------ Quantum Reactor > --- PROPULSION ------- Armored Huge Wheel Armored Huge Wheel > --- UTILITY ---------- High-capacity Storage Unit Advanced Visual Processing Unit Improved Sensor Array Improved Signal Interpreter Advanced Targeting Computer Target Analyzer Recoil Stabilizer Improved Medium Armor Plating Layered Medium Armor Plating > --- WEAPON ----------- Coil Gun KE Penetrator KE Penetrator Enhanced Coil Gun > --- INVENTORY -------- Light Nuclear Core Reinforced Deuterium Engine Armored Huge Wheel Hardlight Generator Coil Gun Coil Gun Proton Missile Launcher Precision Grenade Launcher Long-range Missile Launcher [Rating: 81] Favorites ----------- Power Reinforced Deuterium Engine Engine Reinforced Deuterium Engine Power Core Light Nuclear Core Reactor Quantum Reactor Propulsion Light Treads Treads Light Treads Leg Myomer Leg Wheel Armored Huge Wheel Flight Unit Improved Flight Unit Utility Target Analyzer Device Sensor Array Storage Large Storage Unit Processor Target Analyzer Protection Improved Medium Armor Plating Weapon Coil Gun Energy Gun Advanced Beam Rifle Energy Cannon Heavy Plasma Cannon Ballistic Gun Coil Gun Ballistic Cannon Assault Cannon Launcher Long-range Missile Launcher Impact Weapon Heavy Hammer Slashing Weapon Katana Piercing Weapon Heavy Pick Build | -11 -10 -9 -9 -8 -7 -7 -6 -5 -5 -5 -5 -5 -4 ------- Run | Scr Mat Mat Min Mat Fac DSF Fac Fac Ext Cet Arc Hub Fac Slots Evolved 13 | . 1 2 . 2 2 . 2 2 . . . . 2 Power . | . . . . . . . . . . . . . . Propulsion 2 | . . . . . . . . 2 . . . . . Utility 9 | . 1 2 . 2 . . 2 . . . . . 2 Weapon 2 | . . . . . 2 . . . . . . . . Parts Attached 115 | 6 3 16 1 33 2 5 9 11 6 1 3 11 8 Power 12 | 1 . 1 . 5 . 1 . . 1 1 . 2 . Engine 5 | 1 . 1 . 1 . 1 . . . . . 1 . Core 6 | . . . . 4 . . . . 1 . . 1 . Reactor 1 | . . . . . . . . . . 1 . . . Propulsion 19 | 2 . 5 . 7 . 1 . 1 . . 1 . 2 Treads 9 | 2 . 4 . 3 . . . . . . . . . Leg 2 | . . . . . . . . . . . . . 2 Wheel 7 | . . . . 4 . 1 . 1 . . 1 . . Hover . | . . . . . . . . . . . . . . Flight 1 | . . 1 . . . . . . . . . . . Utility 31 | 2 2 3 . 8 . 3 3 5 2 . . 2 1 Device 11 | 1 . 2 . 2 . . 2 2 1 . . 1 . Storage 5 | 1 1 . . 1 . 2 . . . . . . . Processor 9 | . 1 1 . 2 . 1 1 2 . . . 1 . Hackware . | . . . . . . . . . . . . . . Protection 6 | . . . . 3 . . . 1 1 . . . 1 Artifact . | . . . . . . . . . . . . . . Weapon 53 | 1 1 7 1 13 2 . 6 5 3 . 2 7 5 Energy Gun 1 | . . . . 1 . . . . . . . . . Energy Cannon 2 | . . . . . . . . . . . . . 2 Ballistic Gun 34 | 1 1 5 1 8 1 . 5 2 3 . 2 5 . Ballistic Cannon 2 | . . . . 1 1 . . . . . . . . Launcher 7 | . . . . 1 . . 1 1 . . . 2 2 Special Weapon . | . . . . . . . . . . . . . . Impact Weapon 4 | . . 2 . 1 . . . . . . . . 1 Slashing Weapon 1 | . . . . 1 . . . . . . . . . Piercing Weapon 2 | . . . . . . . . 2 . . . . . Special Melee Weapon . | . . . . . . . . . . . . . . Unidentified Prototypes 4 | . . 1 . 1 . . 1 1 . . . . . Parts Lost 43 | . . 1 . 13 . . . 7 2 . 1 19 . Power 4 | . . . . 1 . . . . . . . 3 . Propulsion 6 | . . . . 4 . . . . . . . 2 . Utility 18 | . . 1 . 5 . . . 6 1 . . 5 . Weapon 15 | . . . . 3 . . . 1 1 . 1 9 . Highest Loss Streak 10 | . . 1 . 3 . . . 5 2 . 1 10 . To Critical Strikes 1 | . . . . . . . . . . . . 1 . Average Slot Usage (%) 87 | . 87 100 100 82 98 99 88 85 86 87 87 79 18 Engine 4 | . 12 10 10 2 . 3 6 5 . . . 1 . Core 1 | . . . . 5 7 3 . . 4 . . . . Treads 8 | . 25 20 20 8 . . . . . . . . . Wheel 6 | . . . . 5 14 13 6 11 11 11 10 10 . Device 11 | . 12 20 20 8 7 . 7 10 12 11 11 12 . Storage 9 | . 12 10 10 9 14 14 18 14 5 5 5 4 . Processor 19 | . 5 20 20 19 21 27 25 21 22 22 22 23 . Protection 3 | . . . . 5 7 7 . . 6 11 11 3 . Ballistic Gun 18 | . 19 19 19 12 20 21 23 21 21 22 21 18 . Naked Turns 25 | . . . . . . . . . . . . 8 17 Heaviest Build 97 | 18 29 35 35 49 57 82 86 88 91 97 97 97 38 Greatest Support 56 | 40 40 40 40 40 32 32 28 56 56 56 56 56 43 Greatest Overweight (x) 23 | . . . . 3 1 2 3 1 1 1 3 23 12 Average Overweight (x) . | . . . . 1 1 1 2 1 1 1 1 1 . Largest Inventory Capacity 20 | 10 15 15 15 15 15 20 20 20 20 20 20 20 5 Average Capacity 16 | 9 12 15 15 15 15 18 20 20 20 20 20 19 5 Most Carried 20 | 4 7 15 12 15 15 20 18 16 11 11 9 8 5 Average Carried 10 | 1 3 8 12 12 13 15 15 13 9 10 7 6 3 Final Capacity 20 | 10 15 15 15 15 15 20 20 20 20 20 20 5 5 Final Carried 17 | 2 7 12 12 15 14 17 15 8 10 10 8 4 3 Class Distribution -------------------- 40% | Hacker-Mutant 23% | Scavenger-Gunner 20% | Hacker-Gunner 15% | Scavenger-Mutant Dominant Class ---------------- Hacker-Mutant | -10/Materials Hacker-Mutant | -9/Materials Hacker-Mutant | -9/Mines Scavenger-Mutant | -8/Materials Scavenger-Gunner | -7/Factory Scavenger-Gunner | -7/DSF Hacker-Gunner | -6/Factory Hacker-Gunner | -5/Factory Hacker-Gunner | -5/Extension Scavenger-Gunner | -5/Cetus Scavenger-Gunner | -5/Archives Scavenger-Gunner | -5/Hub_04(d) Hacker-Mutant | -4/Factory Resources | -11 -10 -9 -9 -8 -7 -7 -6 -5 -5 -5 -5 -5 -4 ----------- Run | Scr Mat Mat Min Mat Fac DSF Fac Fac Ext Cet Arc Hub Fac Matter Collected 4064 | 260 162 816 61 742 20 66 316 . 407 240 319 621 34 Remotely 984 | . . 816 56 112 . . . . . . . . . Salvage Created 5386 | . 327 678 . 1471 . 443 246 33 328 355 409 1034 62 Parts 309 | . 22 34 . 99 . 25 22 4 15 16 16 56 . Haulers Intercepted 2 | . 1 1 . . . . . . . . . . . Recyclers Shooed . | . . . . . . . . . . . . . . Parts Field Recycled . | . . . . . . . . . . . . . . Retrieved Matter . | . . . . . . . . . . . . . . Parts Self-Destructed . | . . . . . . . . . . . . . . Prevented . | . . . . . . . . . . . . . . Kills | -11 -10 -9 -9 -8 -7 -7 -6 -5 -5 -5 -5 -5 -4 ------- Run | Scr Mat Mat Min Mat Fac DSF Fac Fac Ext Cet Arc Hub Fac Combat Hostiles Destroyed 87 | . 7 11 . 26 . 8 5 . 4 5 4 15 2 Melee 6 | . . . . 6 . . . . . . . . . Guns 74 | . 7 11 . 18 . 6 5 . 4 5 4 14 . Cannons 2 | . . . . . . 2 . . . . . . . AOE 5 | . . . . 2 . . . . . . . 1 2 Classes Destroyed 14 | . 4 3 . 5 . . . . 2 . . . . Worker 7 | . . . . 1 . . . . . . . 6 . Builder 2 | . . . . . . . . . 1 . . 1 . Hauler 2 | . 1 1 . . . . . . . . . . . Recycler 4 | . . 1 . 3 . . . . . . . . . Operator 5 | . . . . 2 . . 1 . . . 1 1 . Watcher 4 | . 1 . . . . . . 1 . 1 . 1 . Swarmer 12 | . 2 . . 5 . . 2 . . . . 3 . Grunt 30 | . 5 4 . 11 . 4 . . . 4 . 2 . Duelist 1 | . . 1 . . . . . . . . . . . Sentry 20 | . . 6 . 4 . . 1 . 3 . 4 2 . Specialist 9 | . . . . 4 . 3 . . . . . 2 . Hunter 11 | . . . . 1 . . 2 . . . . 6 2 Heavy 2 | . . . . 1 . 1 . . . . . . . Behemoth 1 | . . . . . . . . . 1 . . . . Cetus Guard 1 | . . . . . . . . . . 1 . . . Best Kill Streak 6 | . 3 3 . 5 . 5 2 1 2 3 3 6 2 Combat Bots Only 5 | . 2 2 . 4 . 5 2 . 2 3 2 5 2 Max Kills in Single Turn 3 | . 1 1 . 3 . 1 2 1 1 1 3 2 1 Gunslinging 1 | . . . . . . . 1 . . . 1 1 . Exploded 2 | . . . . 2 . . . . . . . 1 1 Melee 1 | . . . . 1 . . . . . . . . . Uniques/NPCs Destroyed . | . . . . . . . . . . . . . . Combat | -11 -10 -9 -9 -8 -7 -7 -6 -5 -5 -5 -5 -5 -4 -------- Run | Scr Mat Mat Min Mat Fac DSF Fac Fac Ext Cet Arc Hub Fac Damage Taken 6961 | . 213 492 . 1598 . 202 198 687 322 375 622 2090 162 Core 1163 | . 27 98 . 306 . 33 33 52 . . 18 562 34 Absorbed by Shields 328 | . . . . 104 . . . . . . . 224 . Core Remaining (%) 76 | 100 89 . 75 44 . 95 96 . . . . 36 . Volleys Fired 280 | . 38 42 . 74 . 13 8 12 13 16 16 44 4 Largest 4 | . 2 2 . 2 . 4 4 4 4 4 4 4 2 Hottest 195 | . 40 46 . 56 . 125 126 123 126 126 126 133 195 Shots Fired 715 | . 50 84 1 146 . 52 32 31 49 60 62 143 5 Gun 685 | . 50 84 1 145 . 39 31 26 49 60 62 138 . Cannon 15 | . . . . . . 13 . . . . . . 2 Launcher 15 | . . . . 1 . . 1 5 . . . 5 3 Special . | . . . . . . . . . . . . . . Kinetic 698 | . 50 84 1 145 . 52 31 26 49 60 62 138 . Thermal 2 | . . . . . . . . . . . . . 2 Explosive 15 | . . . . 1 . . 1 5 . . . 5 3 Electromagnetic . | . . . . . . . . . . . . . . Robot Hit Streak 58 | . 35 27 13 35 . 21 19 1 41 58 32 46 49 Robot Miss Streak 4 | . 1 1 . 1 . 4 2 1 . 2 1 1 . Penetration Max 3 | . . . . 1 . 1 . . 3 1 1 1 . Secondary Targets 12 | . . 2 . 2 . . 2 . 2 2 1 1 . Max Gunslinging Chain 1 | . . 1 . 1 . . 1 . 1 1 1 1 . Shots Hit Robots 581 | . 46 73 1 142 . 33 19 1 40 52 53 118 3 Core Hits 242 | . 19 23 . 56 . 20 12 1 14 22 19 50 6 Critical Kills 5 | . . . . . . . 3 . 1 . 1 . . Critical Parts Destroyed 28 | . . . . 2 . 3 1 . 6 7 . 9 . Critical Strikes 37 | . . . . 2 . 3 4 . 9 7 3 9 . Destroy 37 | . . . . 2 . 3 4 . 9 7 3 9 . Melee Attacks 42 | . . 6 . 24 . . . 12 . . . . . Impact 11 | . . 6 . 5 . . . . . . . . . Slashing 19 | . . . . 19 . . . . . . . . . Piercing 12 | . . . . . . . . 12 . . . . . Sneak Attacks 1 | . . . . 1 . . . . . . . . . Combat Hostiles . | . . . . . . . . . . . . . . Follow-up Attacks . | . . . . . . . . . . . . . . Damage Inflicted 12756 | . 534 1022 12 2674 . 648 285 24 997 1447 1324 3372 417 Guns 10597 | . 534 1022 12 2031 . 552 285 24 997 1447 1324 2369 . Cannons 185 | . . . . 18 . 96 . . . . . . 71 Explosions 1441 | . . . . 95 . . . . . . . 1000 346 Melee 527 | . . . . 527 . . . . . . . . . Ramming 6 | . . . . 3 . . . . . . . 3 . Kinetic 10693 | . 534 1022 12 2031 . 648 285 24 997 1447 1324 2369 . Thermal 71 | . . . . . . . . . . . . . 71 Explosive 1116 | . . . . 95 . . . . . . . 675 346 Electromagnetic 325 | . . . . . . . . . . . . 325 . Impact 18 | . . . . 18 . . . . . . . . . Slashing 527 | . . . . 527 . . . . . . . . . Piercing . | . . . . . . . . . . . . . . Highest Corruption 23 | . . 1 1 . . . . 15 15 17 17 23 . Average Corruption 10 | . . 1 1 . . . . 5 15 15 17 17 . Corruption Purged . | . . . . . . . . . . . . . . Corruption Blocked . | . . . . . . . . . . . . . . Effects 103 | . . 3 3 . . . . 10 26 14 16 31 . Message Errors 21 | . . 2 . . . . . 4 5 1 3 6 . Matter Fused 19 | . . 1 2 . . . . 2 6 3 2 3 . Heat Flow Errors 10 | . . . . . . . . . 4 1 1 4 . Energy Discharges 10 | . . . . . . . . 1 4 2 2 1 . Parts Rejected 3 | . . . . . . . . . . 2 1 . . Data Loss (minor) 11 | . . . . . . . . . 4 1 4 2 . Data Loss (major) 9 | . . . . . . . . 3 1 . 1 4 . Misfires 2 | . . . 1 . . . . . 1 . . . . Misdirections 5 | . . . . . . . . . . . . 5 . Weapon Failures 13 | . . . . . . . . . 1 4 2 6 . Overload Shots . | . . . . . . . . . . . . . . Overflow Damage 160 | . . . . 110 . . . . . . . 50 . Projectiles . | . . . . . . . . . . . . . . Explosions 50 | . . . . . . . . . . . . 50 . Melee 110 | . . . . 110 . . . . . . . . . Knockbacks . | . . . . . . . . . . . . . . Impact . | . . . . . . . . . . . . . . Kinetic . | . . . . . . . . . . . . . . Secondary . | . . . . . . . . . . . . . . Self-Inflicted Damage 111 | . . . . 16 . . . . . . . 71 24 Shots 3 | . . . . 1 . . . . . . . 1 1 Rammed 1 | . . . . . . . . . . . . 1 . Targets Rammed 2 | . . . . 1 . . . . . . . 1 . Kicked . | . . . . . . . . . . . . . . Crushed 1 | . . . . 1 . . . . . . . . . Highest Temperature 372 | . 6 20 . 39 . 27 180 42 247 282 372 262 66 Average Temperature 76 | . 5 4 . 10 . 13 61 18 85 108 146 79 38 Received Heat Transfer 1579 | . 180 249 . 653 . 45 . . 45 72 135 191 9 Effects 8 | . . . . . . . . . . 3 2 3 . Shutdowns 1 | . . . . . . . . . . . 1 . . Energy Bleed 2 | . . . . . . . . . . 1 1 . . Interference 5 | . . . . . . . . . . 2 . 3 . Siege Activations . | . . . . . . . . . . . . . . Robots Corrupted 1 | . . . . . . . . . . . . 1 . Combat Hostiles . | . . . . . . . . . . . . . . Parts Fried 3 | . . . . . . . . . . . . 3 . Impact Corruptions . | . . . . . . . . . . . . . . Robots Melted . | . . . . . . . . . . . . . . Combat Hostiles . | . . . . . . . . . . . . . . Parts Melted . | . . . . . . . . . . . . . . Heat Transferred 87 | . . . . . . . . . . . . . 87 Parts Sabotaged . | . . . . . . . . . . . . . . Parts Stolen . | . . . . . . . . . . . . . . Parts Stripped . | . . . . . . . . . . . . . . Power Chain Reactions . | . . . . . . . . . . . . . . Missiles Intercepted . | . . . . . . . . . . . . . . Alert | -11 -10 -9 -9 -8 -7 -7 -6 -5 -5 -5 -5 -5 -4 ------- Run | Scr Mat Mat Min Mat Fac DSF Fac Fac Ext Cet Arc Hub Fac Peak Influence 655 | . 239 395 27 242 . 224 213 67 135 262 214 655 234 Initial 90 | . . 11 27 . . . 87 45 1 29 67 51 90 Average 103 | . 75 119 24 105 . 115 165 40 70 137 189 232 122 Maximum Alert Level 2 | . 1 1 . 1 . 1 1 . . 1 1 2 1 Low Security (%) 83 | 100 90 79 100 94 100 70 74 100 100 80 29 40 80 Level 1 14 | . 9 20 . 5 . 30 25 . . 19 70 43 19 Level 2 1 | . . . . . . . . . . . . 16 . Level 3 . | . . . . . . . . . . . . . . Level 4 . | . . . . . . . . . . . . . . Level 5 . | . . . . . . . . . . . . . . High Security . | . . . . . . . . . . . . . . Max Security . | . . . . . . . . . . . . . . Squads Dispatched 24 | . 2 . . 7 . 2 2 . 1 2 . 7 1 Investigation 6 | . 2 . . . . . 1 . . 2 . 1 . Extermination . | . . . . . . . . . . . . . . Reinforcement 15 | . . . . 5 . 2 1 . 1 . . 5 1 Assault . | . . . . . . . . . . . . . . Garrison 3 | . . . . 2 . . . . . . . 1 . Intercept . | . . . . . . . . . . . . . . Searches Triggered . | . . . . . . . . . . . . . . Construction Impeded 1 | . . . . . . . . . . . . 1 . Haulers Reinforced . | . . . . . . . . . . . . . . Active Scanning Responses . | . . . . . . . . . . . . . . Cargo Convoy Interrupts . | . . . . . . . . . . . . . . Stealth | -11 -10 -9 -9 -8 -7 -7 -6 -5 -5 -5 -5 -5 -4 --------- Run | Scr Mat Mat Min Mat Fac DSF Fac Fac Ext Cet Arc Hub Fac Distress Signals 7 | . 1 . . 2 . . . . 1 1 . 2 . Communications Jammed . | . . . . . . . . . . . . . . Distress Signals . | . . . . . . . . . . . . . . Times Spotted 148 | . 13 15 . 38 . 9 6 1 8 14 6 34 4 Peak Tracking Total 10 | . 5 3 . 5 . 3 2 1 3 5 2 10 2 Tactical Retreats 7 | . . 2 . 2 . 1 . . . . . 2 . Traps | -11 -10 -9 -9 -8 -7 -7 -6 -5 -5 -5 -5 -5 -4 ------- Run | Scr Mat Mat Min Mat Fac DSF Fac Fac Ext Cet Arc Hub Fac Traps Triggered 7 | . . 2 . 1 . . . 1 1 . . 2 . Indirectly 1 | . . . . . . . . . . . . 1 . Trap Hack Attempts . | . . . . . . . . . . . . . . Triggered . | . . . . . . . . . . . . . . Disarmed . | . . . . . . . . . . . . . . Reprogrammed 3 | . . 3 . . . . . . . . . . . Reused . | . . . . . . . . . . . . . . Traps Extracted . | . . . . . . . . . . . . . . Installed . | . . . . . . . . . . . . . . Triggered . | . . . . . . . . . . . . . . Machines | -11 -10 -9 -9 -8 -7 -7 -6 -5 -5 -5 -5 -5 -4 ---------- Run | Scr Mat Mat Min Mat Fac DSF Fac Fac Ext Cet Arc Hub Fac Machines Disabled 22 | . . . . 2 . 1 . 1 1 . 2 15 . Max in Single Turn 7 | . . . . 1 . 1 . 1 1 . 1 7 . Garrison Access 1 | . . . . 1 . . . . . . . . . Network Hub 1 | . . . . . . . . . . . . 1 . Machines Sabotaged . | . . . . . . . . . . . . . . Garrisons Compromised . | . . . . . . . . . . . . . . Overloaded Fab Kills . | . . . . . . . . . . . . . . Hacking | -11 -10 -9 -9 -8 -7 -7 -6 -5 -5 -5 -5 -5 -4 --------- Run | Scr Mat Mat Min Mat Fac DSF Fac Fac Ext Cet Arc Hub Fac Machines Accessed 39 | . 5 4 . 7 1 . 2 1 12 3 . 4 . Terminals 38 | . 5 4 . 6 1 . 2 1 12 3 . 4 . Fabricators . | . . . . . . . . . . . . . . Repair Stations . | . . . . . . . . . . . . . . Recycling Units . | . . . . . . . . . . . . . . Scanalyzers . | . . . . . . . . . . . . . . Garrison Access 1 | . . . . 1 . . . . . . . . . Total Hacks 112 | . 17 16 . 18 2 . 12 2 24 7 . 14 . Successful 64 | . 12 11 . 10 1 . 6 2 15 4 . 3 . Failed 48 | . 5 5 . 8 1 . 6 . 9 3 . 11 . Catastrophic 5 | . 1 . . . . . . . 2 1 . 1 . Database Lockouts . | . . . . . . . . . . . . . . Manual 82 | . 14 13 . 15 . . 13 . 13 1 . 13 . Terminals 111 | . 17 16 . 17 2 . 12 2 24 7 . 14 . Fabricators . | . . . . . . . . . . . . . . Repair Stations . | . . . . . . . . . . . . . . Recycling Units . | . . . . . . . . . . . . . . Scanalyzers . | . . . . . . . . . . . . . . Garrison Access 1 | . . . . 1 . . . . . . . . . Terminal Hacks 47 | . 9 7 . 6 1 . 4 2 11 4 . 3 . Record 6 | . . . . . . . . 1 . 4 . 1 . Prototype ID Bank 9 | . 5 2 . 1 . . . 1 . . . . . Open Door 7 | . . . . . . . . . 7 . . . . Open DSF 1 | . . . . . 1 . . . . . . . . Level Access Points 4 | . 1 . . 1 . . 1 . . . . 1 . Branch Access Points 4 | . 1 1 . 1 . . . . 1 . . . . Terminal Index 5 | . 1 1 . 1 . . 1 . 1 . . . . Alert Level 1 | . . . . 1 . . . . . . . . . Unreport Threat 3 | . . . . 1 . . 1 . . . . 1 . Reprogram Traps 1 | . . 1 . . . . . . . . . . . Dispatch Records 1 | . . . . . . . . . 1 . . . . Security Status 1 | . . . . . . . . . 1 . . . . Registered Components 1 | . . 1 . . . . . . . . . . . Registered Prototypes 3 | . 1 1 . . . . 1 . . . . . . Fabricator Hacks . | . . . . . . . . . . . . . . Repair Station Hacks . | . . . . . . . . . . . . . . Recycling Unit Hacks . | . . . . . . . . . . . . . . Scanalyzer . | . . . . . . . . . . . . . . Garrison Access Hacks 1 | . . . . 1 . . . . . . . . . Seal Access 1 | . . . . 1 . . . . . . . . . Unauthorized Hacks 16 | . 3 4 . 3 . . 2 . 4 . . . . Terminals 16 | . 3 4 . 3 . . 2 . 4 . . . . Botnet 16 | . 3 4 . 3 . . 2 . 4 . . . . Fabricators . | . . . . . . . . . . . . . . Repair Stations . | . . . . . . . . . . . . . . Recycling Units . | . . . . . . . . . . . . . . Scanalyzers . | . . . . . . . . . . . . . . Garrison Access . | . . . . . . . . . . . . . . Data Cores Recovered 2 | . . . . 1 . . 1 . . . . . . Used 2 | . . . . 1 . . 1 . . . . . . Hacking Detections 30 | . 4 3 . 6 1 . 2 1 7 2 . 4 . Full Trace Events 8 | . 3 1 . . . . 1 . . 2 . 1 . Feedback Events . | . . . . . . . . . . . . . . Feedback Blocked . | . . . . . . . . . . . . . . Robot Schematics Acquired . | . . . . . . . . . . . . . . Robots Built . | . . . . . . . . . . . . . . Authchips . | . . . . . . . . . . . . . . Time . | . . . . . . . . . . . . . . Total Robot Build Rating . | . . . . . . . . . . . . . . Part Schematics Acquired . | . . . . . . . . . . . . . . Parts Built . | . . . . . . . . . . . . . . Authchips . | . . . . . . . . . . . . . . Time . | . . . . . . . . . . . . . . Total Part Build Rating . | . . . . . . . . . . . . . . Parts Repaired . | . . . . . . . . . . . . . . Time . | . . . . . . . . . . . . . . Parts Recycled . | . . . . . . . . . . . . . . Recycled Matter . | . . . . . . . . . . . . . . Retrieved Matter . | . . . . . . . . . . . . . . Retrieved Components . | . . . . . . . . . . . . . . Parts Scanalyzed . | . . . . . . . . . . . . . . Part Schematics Acquired . | . . . . . . . . . . . . . . Parts Damaged . | . . . . . . . . . . . . . . Bothacking | -11 -10 -9 -9 -8 -7 -7 -6 -5 -5 -5 -5 -5 -4 ------------ Run | Scr Mat Mat Min Mat Fac DSF Fac Fac Ext Cet Arc Hub Fac Used RIF Installer . | . . . . . . . . . . . . . . Robots Hacked . | . . . . . . . . . . . . . . Non-combat . | . . . . . . . . . . . . . . Combat . | . . . . . . . . . . . . . . Robot Hacks Applied . | . . . . . . . . . . . . . . Relay Couplers Released . | . . . . . . . . . . . . . . Fabnet Peak Effective % . | . . . . . . . . . . . . . . Robots Rewired . | . . . . . . . . . . . . . . Allies Hacked . | . . . . . . . . . . . . . . Hacks Repelled . | . . . . . . . . . . . . . . Allies | -11 -10 -9 -9 -8 -7 -7 -6 -5 -5 -5 -5 -5 -4 -------- Run | Scr Mat Mat Min Mat Fac DSF Fac Fac Ext Cet Arc Hub Fac Total Allies 10 | . . . . . . . . . 10 . . . . Largest Group 10 | . . . . . . . . . 10 4 . . . Highest-Rated Group 264 | . . . . . . . . . 264 118 . . . Highest-Rated Ally 31 | . . . . . . . . . 31 31 . . . Total Orders . | . . . . . . . . . . . . . . Ally Attacks 77 | . . . . . . . . . 29 48 . . . Total Damage 1384 | . . . . . . . . . 586 798 . . . Kills 10 | . . . . . . . . . 4 6 . . . Allies Corrupted 1 | . . . . . . . . . . 1 . . . Allies Melted . | . . . . . . . . . . . . . . Intel | -11 -10 -9 -9 -8 -7 -7 -6 -5 -5 -5 -5 -5 -4 ------- Run | Scr Mat Mat Min Mat Fac DSF Fac Fac Ext Cet Arc Hub Fac Robot Analysis Total . | . . . . . . . . . . . . . . Derelict Logs Recovered . | . . . . . . . . . . . . . . Drone Launches . | . . . . . . . . . . . . . . Drone Recoveries . | . . . . . . . . . . . . . . Exploration | -11 -10 -9 -9 -8 -7 -7 -6 -5 -5 -5 -5 -5 -4 ------------- Run | Scr Mat Mat Min Mat Fac DSF Fac Fac Ext Cet Arc Hub Fac Turns Passed 6217 | 98 583 833 442 1231 133 160 342 668 577 244 293 485 128 Spaces Moved 3352 | 57 300 279 276 516 112 80 209 424 378 150 201 272 98 Core 67 | 14 . . . . . . . . . . . 16 37 Treads 1070 | 43 300 279 276 172 . . . . . . . . . Legs 61 | . . . . . . . . . . . . . 61 Wheels 2154 | . . . . 344 112 80 209 424 378 150 201 256 . Hover . | . . . . . . . . . . . . . . Flight . | . . . . . . . . . . . . . . Fastest Speed 50 | 50 160 160 160 105 115 115 130 115 115 115 115 50 50 Average Speed 131 | 132 160 160 160 137 115 124 139 115 115 115 115 115 108 Slowest Speed 1200 | 160 160 160 160 240 115 130 145 115 115 115 145 1200 650 Overloaded Moves . | . . . . . . . . . . . . . . Propulsion Burnouts . | . . . . . . . . . . . . . . Robots Hopped . | . . . . . . . . . . . . . . Cave-ins Triggered 3 | . . . . . . . . 3 . . . . . Exploration Rate (%) 41 | 5 54 30 73 53 3 73 9 10 62 63 94 44 4 Regions Visited 13 Branch Regions 5 Pre-discovered Areas . | . . . . . . . . . . . . . . Known Exits Taken 12 | 1 1 1 1 1 1 . 1 1 1 1 1 1 . Unknown Exits Taken . | . . . . . . . . . . . . . . Scrap Searched 1 | . . . 1 . . . . . . . . . . Spaces Dug 91 | . . 6 . 9 . . . 76 . . . . . Terrain Destroyed 382 | . . 6 . 12 . 1 5 89 6 12 6 202 43 Melee 22 | . . 6 . 9 . . . 7 . . . . . Projectile 52 | . . . . . . 1 1 14 6 12 6 12 . AOE 308 | . . . . 3 . . 4 68 . . . 190 43 Terrain Rammed . | . . . . . . . . . . . . . . Walls Destroyed . | . . . . . . . . . . . . . . Machines Disabled . | . . . . . . . . . . . . . . Actions | -11 -10 -9 -9 -8 -7 -7 -6 -5 -5 -5 -5 -5 -4 --------- Run | Scr Mat Mat Min Mat Fac DSF Fac Fac Ext Cet Arc Hub Fac Total 4507 | 79 356 568 276 855 116 114 243 557 488 181 221 339 114 Wait 582 | 9 5 210 . 163 . . . 93 82 14 . 6 . Move 3339 | 56 299 278 275 515 111 79 208 422 377 149 200 272 98 Hop . | . . . . . . . . . . . . . . Pick Up 96 | 8 9 12 . 31 2 8 8 3 5 1 2 5 2 Fast Attach 9 | . . . . 6 . . . . . . . . 3 Attach 73 | 6 2 4 . 20 2 1 7 8 4 1 3 10 5 Detach 6 | . . . . . . . 2 1 1 . . . 2 Swap 33 | . 1 12 1 7 . 4 2 3 2 . . 1 . Drop 41 | . 2 4 . 14 1 9 8 2 . . . 1 . Fire 280 | . 38 42 . 74 . 13 8 12 13 16 16 44 4 Melee 42 | . . 6 . 24 . . . 12 . . . . . Ram . | . . . . . . . . . . . . . . Kick . | . . . . . . . . . . . . . . Crush 1 | . . . . 1 . . . . . . . . . Escape Stasis 5 | . . . . . . . . 1 4 . . . . Rewire . | . . . . . . . . . . . . . . Trap . | . . . . . . . . . . . . . . Miscellaneous . | . . . . . . . . . . . . . . Route ------- -11/Scrapyard -10/Materials (discovered 5 exits: *Mat x3 / *Min x2) -9/Materials (discovered 2 exits: *Min x2) -9/Mines (discovered 2 exits: *Mat / *Zio) -8/Materials (discovered 4 exits: *Fac x3 / Sto) -7/Factory -7/DSF -6/Factory (discovered 4 exits: *Fac x4) -5/Factory -5/Extension (discovered 2 exits: *Fac / *Cet) -5/Cetus -5/Archives (discovered 3 exits: *Fac / *Hub x2) -5/Hub_04(d) (discovered 4 exits: *Fac x4) -4/Factory (discovered 1 exit: *Res) History --------- Turn | Location | Event 35 | -11/Scrapyard | Identified exit to Materials 35 | -11/Scrapyard | Discovered exit to Materials (range 16) 99 | -11/Scrapyard | Entered Materials 99 | -10/Materials | Evolved 1 slot: Utility x1 111 | -10/Materials | Identified exit to Mines 309 | -10/Materials | Build established: Hacker-Mutant 630 | -10/Materials | Identified exit to Materials 682 | -10/Materials | Entered another Materials area 682 | -9/Materials | Evolved 2 slots: Utility x2 1397 | -9/Materials | Identified exit to Mines 1515 | -9/Materials | Entered Mines 1545 | -9/Mines | A Derelict revealed a hidden shortcut to a safe place 1555 | -9/Mines | Identified exit to Zion 1904 | -9/Mines | Identified exit to Materials 1904 | -9/Mines | Discovered exit to Materials (range 10) 1957 | -9/Mines | Entered Materials 1957 | -8/Materials | Evolved 2 slots: Utility x2 2021 | -8/Materials | Garrison activated, responded to threat 2454 | -8/Materials | Build established: Scavenger-Mutant 2528 | -8/Materials | Lost 3 parts (1n2u) 2577 | -8/Materials | Identified exit to Storage 2577 | -8/Materials | Identified exit to Factory 2893 | -8/Materials | Core integrity fell below 50% 3188 | -8/Materials | Entered Factory 3188 | -7/Factory | Evolved 2 slots: Weapon x2 3319 | -7/Factory | Identified exit to DSF 3321 | -7/Factory | Entered DSF 3341 | -7/DSF | Additional patrols routed to DSF 3439 | -7/DSF | Identified exit to Factory 3439 | -7/DSF | Discovered exit to Factory (range 16) 3481 | -7/DSF | Entered Factory 3481 | -6/Factory | Evolved 2 slots: Utility x2 3501 | -6/Factory | Build established: Scavenger-Gunner 3731 | -6/Factory | Identified exit to Factory 3817 | -6/Factory | Build established: Hacker-Gunner 3823 | -6/Factory | Entered another Factory area 3823 | -5/Factory | Evolved 2 slots: Propulsion x2 4239 | -5/Factory | Identified exit to Extension 4239 | -5/Factory | Discovered exit to Extension (range 13) 4353 | -5/Factory | Crushed by falling debris 4396 | -5/Factory | Crushed by falling debris 4397 | -5/Factory | System corruption reached 10% 4408 | -5/Factory | Crushed by falling debris 4439 | -5/Factory | Lost 5 parts (4u1w) 4491 | -5/Factory | Entered Extension 4615 | -5/Extension | Rescued a captive Derelict 4616 | -5/Extension | Rescued a captive Derelict 4622 | -5/Extension | Rescued a captive Derelict 4645 | -5/Extension | Rescued a captive Derelict 4688 | -5/Extension | Rescued a captive Derelict 4702 | -5/Extension | Rescued a captive Derelict 4703 | -5/Extension | Rescued a captive Derelict 4723 | -5/Extension | Rescued a captive Derelict 4724 | -5/Extension | Rescued a captive Derelict 4730 | -5/Extension | Rescued a captive Derelict 4827 | -5/Extension | Spotted B-75 Beast 4848 | -5/Extension | Spotted B-75 Beast 4862 | -5/Extension | Allies destroyed B-75 Beast 4878 | -5/Extension | Destroyed B-75 Beast 4918 | -5/Extension | Identified exit to Cetus 5039 | -5/Extension | Identified exit to Factory 5039 | -5/Extension | Discovered exit to Factory (range 18) 5068 | -5/Extension | Entered Cetus 5068 | -5/Cetus | Accompanied by 4 allies 5088 | -5/Cetus | Spotted Cetus Guard 5088 | -5/Cetus | Spotted Cetus Guard 5091 | -5/Cetus | Spotted Cetus Guard 5093 | -5/Cetus | Destroyed Cetus Guard 5094 | -5/Cetus | Spotted Cetus Guard 5103 | -5/Cetus | Allies destroyed Cetus Guard 5106 | -5/Cetus | Allies destroyed Cetus Guard 5113 | -5/Cetus | Allies destroyed Cetus Guard 5157 | -5/Cetus | Build established: Scavenger-Gunner 5288 | -5/Cetus | Identified exit to Archives 5288 | -5/Cetus | Discovered exit to Archives (range 15) 5312 | -5/Cetus | Entered Archives 5378 | -5/Archives | Unable to access archive contents 5400 | -5/Archives | Identified exit to Hub_04(d) 5400 | -5/Archives | Discovered exit to Hub_04(d) (range 17) 5407 | -5/Archives | Discovered exit to Hub_04(d) (range 19) 5418 | -5/Archives | Discovered exit to Factory (range 20) 5422 | -5/Archives | Unable to access archive contents 5433 | -5/Archives | Unable to access archive contents 5605 | -5/Archives | Entered Hub_04(d) 5950 | -5/Hub_04(d) | Found Hvy. Reflective Plating 5983 | -5/Hub_04(d) | Network Hub disabled 6064 | -5/Hub_04(d) | Garrison activated, responded to threat 6066 | -5/Hub_04(d) | Spotted Lightning 6068 | -5/Hub_04(d) | Spotted Lightning 6069 | -5/Hub_04(d) | Spotted Lightning 6082 | -5/Hub_04(d) | Released all parts (5) 6087 | -5/Hub_04(d) | Core integrity fell below 50% 6090 | -5/Hub_04(d) | Entered Factory 6090 | -4/Factory | Evolved 2 slots: Utility x2 6111 | -4/Factory | Lost 10 parts (1p2n3u4w) 6211 | -4/Factory | Identified exit to Research 6211 | -4/Factory | Discovered exit to Research (range 4) 6218 | -4/Factory | Self-destructed Last Messages --------------- K-01 Serf collects debris. ALERT: All DSF locations entering lockdown mode. O-24 Administrator: "IFF HANDSHAKE FAILED. SECURING TERMINAL." Connecting with DSF Access... ALERT: Hostiles spotted, dispatching reinforcements to Terminal F017. Slug penetrates Wall. Construction Platform disabled. Slug penetrates Wall. Penetrated by Slug. Slug penetrates Wall. Acquired Micro-nuke Launcher. Penetrated by Slug. H-77 Assassin destroyed. The unstable cave ceiling collapses. Acquired 30 matter. Acquired 4 matter. The unstable cave ceiling collapses. EXIT=FOUND: RESEARCH The unstable cave ceiling collapses. Slug penetrates Wall. Map ----- +----------------------------------------------------+ | ????????????????????????????? | | ????????????????????????????? | | ????????????????????????????? | | ????????????????????????????? | | ????????????????????????????? | | ????????????????????????????? | | ????????????????????????????? | | ????????????????????????????? | | ????????????????????????????? | | ????????????????????????????? | | ???? ???????????????????????? | | ???? ???????????????????????? | | ???? ???????????????????????? | | ???? ???????????????????????? | | ???? ???????????????????????? | | ???? ???????????????????????? | | ???? ???????????????????????? | | ???# #??????????????????????? | | ?### ###????????????????????? | | ?# #????????????????????? | | ?? = ?????????????????????? | | ?? Y ?????????????????????? | | ??? ??????????????????????? | | ??? ??????????????????????? | | ####/######?????????????????? | | # @ #?????????????????? | | # #?????????????????? | | # #?????????????????? | | # #####?????????????? | | # #?????????????? | | # # #?#???????????? | | # # +???????????? | | # # # #???????????? | | #### ## #???????????? | | ?# #???????????? | | ?#""" #???????????? | | ?#""" ####???????????? | | ?#""" #????????????? | | ?#""" #????????????? | | ?#""" +????????????? | | ?#""" #?????? #????? | | ?#""" # #?????# #????? | | ?# ### ######## #????? | | ?#######"## #????? | | ??# #????? | | ??# ###### | | ??# ^ | | ??# | | ??# ^ | | ??# """^""" """ """ """ | +----------------------------------------------------+ Best States ------------- Heat Dissipation 43 Energy Generation 25 Energy Capacity 350 Matter Stores 517 Matter Capacity 600 Sight Range 20 Robot Scan Range 15 Terrain Scan Range 20 Terrain Scan Density 10 Armor Coverage 450 Resistance: KI 35 Resistance: TH 35 Resistance: EX 35 Resistance: EM 35 Resistance: I 35 Resistance: S 35 Resistance: P 35 Evasion (%) 55 Targeting Accuracy 13 Target Analysis 5 Armor Integrity Analysis 30 Recoil Reduction 4 Matter Filtering 30 Kinecelleration 30 Offensive Hacking 20 Item Schematics ----------------- None Robot Schematics ------------------ None Fabricated ------------ Nothing Alien Tech Used ----------------- None Achievements -------------- None Challenges ------------ None Game ------ Seed ShieldCompositeScrap Manual? 0 Play Time 02:14:28 Cumulative 54.3 hours Start 2022.03.06 @ 16:31:59 End 2022.03.11 @ 22:13:57 Sessions 27 Manual Loads 0 Difficulty Explorer Special Mode None Game No. 16 Rogue 2 Adventurer 0 Explorer 14 Win Type - Total 2 Types 1/0/1/0/0/0/0/0/0 Lore% 38 Gallery% 40 Achievement% 42 Wizard Run 0 Options --------- ASCII 0 Keyboard 0 Movement Mouse Keybinds 0 Fullscreen 1 Font 24/Smallcaps Map View 76x50 Tactical HUD 0 Map Filters NONE Filters NONE Steam 1 RUN: b4073661-4518-42a1-b555-1420b82c7a36